Cogmind - Beta 11.1 @@@ ROGUE MODE // 2022.05.19 @ 05:29:24 Player: woegarden Result: Destroyed by D-53 Grenadier with Mini Grenade Launcher Performance ------------- Evolutions (3) 1500 Regions Visited (5) 1000 Robots Destroyed (19) 95 Value Destroyed (591) 591 Prototype IDs (5) 100 Alien Tech Used (0) 0 Bonus (150) 150 TOTAL SCORE: 3436 Bonus ------- Follower Combat Kills 205 Friendly Fire -55 Cogmind --------- Core Integrity 0/700 Matter 232/300 Energy 149/150 System Corruption 12% Temperature Cool (0) Movement Core (100) Ox1 Location -7/Factory Parts ------- > --- POWER (2) -------- Micro Nuclear Core > --- PROPULSION (3) --- (None) > --- UTILITY (6) ------ Visual Processing Unit Target Analyzer Hacking Suite > --- WEAPON (2) ------- (None) > --- INVENTORY (5) ---- Huge Storage Unit Improved EM Pulse Cannon Remote Datajack Axe Peak State ------------ > --- POWER ------------ Light Nuclear Core Improved Deuterium Engine > --- PROPULSION ------- Aluminum Leg Carbon-fiber Leg Carbon-fiber Leg > --- UTILITY ---------- Improved Heat Sink Advanced Weight Redist. System Visual Processing Unit Signal Interpreter Targeting Computer Improved Medium Armor Plating > --- WEAPON ----------- Heavy EM Pulse Gun Remote Datajack > --- INVENTORY -------- Huge Storage Unit Field Recycling Unit Particle Gun Field Laser Heavy Laser [Rating: 35] Favorites ----------- Power Light Nuclear Core Engine Ion Engine Power Core Light Nuclear Core Propulsion Aluminum Leg Leg Aluminum Leg Wheel Wheel Hover Unit Gravmag System Flight Unit Improved Flight Unit Utility Visual Processing Unit Device Improved Heat Sink Storage Medium Storage Unit Processor Visual Processing Unit Hackware System Shield Protection Improved Medium Armor Plating Weapon Light Assault Rifle Energy Gun Small Laser Ballistic Gun Light Assault Rifle Launcher Grenade Launcher Special Weapon Remote Datajack Build | -11 -10 -9 -9 -8 -7 ------- Run | Scr Mat Mat Min Mat Fac Slots Evolved 6 | . . 2 . 2 2 Power 1 | . . . . . 1 Propulsion 1 | . . . . 1 . Utility 4 | . . 2 . 1 1 Weapon . | . . . . . . Parts Attached 66 | . 7 6 5 9 39 Power 13 | . 2 . 1 2 8 Engine 8 | . 2 . 1 2 3 Core 5 | . . . . . 5 Reactor . | . . . . . . Propulsion 18 | . 2 . 2 2 12 Treads . | . . . . . . Leg 11 | . 2 . . 1 8 Wheel 2 | . . . . . 2 Hover 4 | . . . 2 . 2 Flight 1 | . . . . 1 . Utility 16 | . 2 3 . 3 8 Device 6 | . 1 . . 2 3 Storage 3 | . 1 . . 1 1 Processor 4 | . . 2 . . 2 Hackware 2 | . . 1 . . 1 Protection 1 | . . . . . 1 Artifact . | . . . . . . Weapon 19 | . 1 3 2 2 11 Energy Gun 12 | . 1 1 1 1 8 Energy Cannon . | . . . . . . Ballistic Gun 3 | . . 1 . 1 1 Ballistic Cannon . | . . . . . . Launcher 2 | . . 1 1 . . Special Weapon 2 | . . . . . 2 Impact Weapon . | . . . . . . Slashing Weapon . | . . . . . . Piercing Weapon . | . . . . . . Special Melee Weapon . | . . . . . . Unidentified Prototypes 3 | . . . . 2 1 Corrupted Parts 1 | . . . . . 1 System Corruption 1 | . . . . . 1 Parts Lost 38 | . . 1 7 2 28 Power 8 | . . . 2 . 6 Propulsion 15 | . . 1 3 1 10 Utility 8 | . . . . 1 7 Weapon 7 | . . . 2 . 5 Highest Loss Streak 10 | . . 1 7 1 10 To Critical Strikes . | . . . . . . Average Slot Usage (%) 73 | . 96 99 64 52 68 Engine 6 | . 14 11 5 3 4 Core 1 | . . . . . 4 Leg 12 | . 28 21 4 1 10 Device 6 | . 10 4 . 3 9 Storage 5 | . 14 11 11 6 . Processor 16 | . . 22 22 18 19 Hackware 4 | . . 6 11 9 2 Energy Gun 8 | . 14 11 4 4 9 Ballistic Gun 3 | . 14 8 2 . . Naked Turns . | . . . . . . Heaviest Build 30 | 12 18 20 20 13 30 Greatest Support 49 | 20 20 20 12 24 49 Greatest Overweight (x) 6 | . . 1 6 3 4 Average Overweight (x) . | . . . 1 . . Largest Inventory Capacity 25 | . 10 10 10 25 25 Average Capacity 7 | . 8 10 10 8 5 Most Carried 10 | . 10 10 10 10 5 Average Carried 6 | . 8 9 8 7 4 Final Capacity 10 | 8 10 10 10 5 5 Final Carried 10 | 6 10 10 10 5 4 Class Distribution -------------------- 58% | Mutant 40% | Scavenger-Mutant Dominant Class ---------------- Mutant | -10/Materials Scavenger-Mutant | -9/Materials Mutant | -9/Mines Mutant | -8/Materials Scavenger-Mutant | -7/Factory Resources | -11 -10 -9 -9 -8 -7 ----------- Run | Scr Mat Mat Min Mat Fac Matter Collected 713 | 200 95 7 57 . 354 Remotely . | . . . . . . Salvage Created 673 | . 275 32 . . 366 Parts 44 | . 18 7 . . 19 Haulers Intercepted 1 | . 1 . . . . Recyclers Shooed 1 | . 1 . . . . Parts Field Recycled . | . . . . . . Retrieved Matter . | . . . . . . Parts Self-Destructed . | . . . . . . Prevented . | . . . . . . Kills | -11 -10 -9 -9 -8 -7 ------- Run | Scr Mat Mat Min Mat Fac Combat Hostiles Destroyed 15 | . 5 3 . . 7 Guns 12 | . 5 . . . 7 AOE 3 | . . 3 . . . Classes Destroyed 7 | . 3 2 . . 2 Worker 2 | . . 1 . . 1 Hauler 1 | . 1 . . . . Watcher 1 | . 1 . . . . Swarmer 3 | . . 3 . . . Grunt 8 | . 5 . . . 3 Hunter 2 | . . . . . 2 Programmer 2 | . . . . . 2 Best Kill Streak 4 | . 4 4 . . 2 Combat Bots Only 3 | . 3 3 . . 2 Max Kills in Single Turn 4 | . 1 4 . . 1 Gunslinging . | . . . . . . Exploded 3 | . . 3 . . . Melee . | . . . . . . Uniques/NPCs Destroyed . | . . . . . . Combat | -11 -10 -9 -9 -8 -7 -------- Run | Scr Mat Mat Min Mat Fac Damage Taken 4402 | . 314 221 809 422 2636 Core 1291 | . 79 8 344 158 702 Absorbed by Shields . | . . . . . . Core Remaining (%) 62 | 100 68 . 12 71 . Volleys Fired 98 | . 25 4 1 . 68 Largest 2 | . 2 2 2 . 2 Hottest 132 | . 60 60 80 . 132 Shots Fired 154 | . 50 7 2 . 95 Gun 151 | . 50 6 1 . 94 Cannon . | . . . . . . Launcher 2 | . . 1 1 . . Special 1 | . . . . . 1 Kinetic 35 | . 25 3 . . 7 Thermal 79 | . 25 3 1 . 50 Explosive 2 | . . 1 1 . . Electromagnetic 37 | . . . . . 37 Robot Hit Streak 13 | . 7 4 1 . 13 Robot Miss Streak 4 | . 2 4 1 . 2 Penetration Max . | . . . . . . Secondary Targets 1 | . . . . . 1 Max Gunslinging Chain 1 | . . . . . 1 Shots Hit Robots 105 | . 34 3 1 . 67 Core Hits 43 | . 13 5 3 1 21 Critical Kills . | . . . . . . Critical Parts Destroyed 1 | . 1 . . . . Critical Strikes 3 | . 1 . . . 2 Burn 1 | . . . . . 1 Destroy 1 | . 1 . . . . Corrupt 1 | . . . . . 1 Melee Attacks . | . . . . . . Impact . | . . . . . . Slashing . | . . . . . . Piercing . | . . . . . . Sneak Attacks . | . . . . . . Combat Hostiles . | . . . . . . Follow-up Attacks . | . . . . . . Damage Inflicted 1800 | . 340 231 123 8 1098 Guns 1441 | . 340 17 . . 1084 Cannons . | . . . . . . Explosions 329 | . . 214 115 . . Melee . | . . . . . . Ramming 30 | . . . 8 8 14 Kinetic 218 | . 128 6 . . 84 Thermal 940 | . 212 11 . . 717 Explosive 329 | . . 214 115 . . Electromagnetic 283 | . . . . . 283 Impact . | . . . . . . Slashing . | . . . . . . Piercing . | . . . . . . Highest Corruption 12 | . 1 . . 1 12 Average Corruption 5 | . 1 . . 1 7 Corruption Purged . | . . . . . . Corruption Blocked . | . . . . . . Effects 15 | . . . . . 15 Message Errors 2 | . . . . . 2 Matter Fused 3 | . . . . . 3 Heat Flow Errors 1 | . . . . . 1 Parts Rejected 1 | . . . . . 1 Data Loss (minor) 3 | . . . . . 3 Misfires 1 | . . . . . 1 Misdirections 2 | . . . . . 2 Weapon Failures 2 | . . . . . 2 Overload Shots . | . . . . . . Overflow Damage . | . . . . . . Projectiles . | . . . . . . Explosions . | . . . . . . Melee . | . . . . . . Knockbacks . | . . . . . . Impact . | . . . . . . Kinetic . | . . . . . . Secondary . | . . . . . . Self-Inflicted Damage 28 | . . . 25 3 . Shots 1 | . . . 1 . . Rammed 6 | . . . 3 3 . Targets Rammed 11 | . . . 3 3 5 Kicked 5 | . . . . . 5 Crushed . | . . . . . . Highest Temperature 371 | . 102 28 24 7 371 Average Temperature 91 | . 46 13 12 7 141 Received Heat Transfer 1088 | . 156 141 90 126 575 Effects 1 | . . . . . 1 Energy Bleed 1 | . . . . . 1 Siege Activations . | . . . . . . Robots Corrupted . | . . . . . . Combat Hostiles . | . . . . . . Parts Fried . | . . . . . . Impact Corruptions . | . . . . . . Robots Melted . | . . . . . . Combat Hostiles . | . . . . . . Parts Melted 3 | . 1 . . . 2 Heat Transferred 1943 | . 475 25 . . 1443 Parts Sabotaged . | . . . . . . Parts Stolen . | . . . . . . Parts Stripped . | . . . . . . Power Chain Reactions . | . . . . . . Missiles Intercepted . | . . . . . . Alert | -11 -10 -9 -9 -8 -7 ------- Run | Scr Mat Mat Min Mat Fac Peak Influence 225 | . 194 225 133 121 127 Initial 83 | . . 81 83 14 54 Average 74 | . 89 191 60 44 58 Maximum Alert Level 1 | . . 1 . . . Low Security (%) 94 | . 100 43 100 100 100 Level 1 5 | . . 56 . . . Level 2 . | . . . . . . Level 3 . | . . . . . . Level 4 . | . . . . . . Level 5 . | . . . . . . High Security . | . . . . . . Max Security . | . . . . . . Squads Dispatched 9 | . 4 1 . . 4 Investigation 6 | . 3 1 . . 2 Extermination 1 | . . . . . 1 Reinforcement 2 | . 1 . . . 1 Assault . | . . . . . . Garrison . | . . . . . . Intercept . | . . . . . . Searches Triggered . | . . . . . . Construction Impeded . | . . . . . . Haulers Reinforced 1 | . . . . . 1 Active Scanning Responses . | . . . . . . Cargo Convoy Interrupts . | . . . . . . Stealth | -11 -10 -9 -9 -8 -7 --------- Run | Scr Mat Mat Min Mat Fac Distress Signals 3 | . . 2 . 1 . Communications Jammed . | . . . . . . Distress Signals . | . . . . . . Times Spotted 70 | . 9 8 23 9 21 Peak Tracking Total 19 | . 3 4 19 8 5 Tactical Retreats 5 | . . . 2 2 1 Traps | -11 -10 -9 -9 -8 -7 ------- Run | Scr Mat Mat Min Mat Fac Traps Triggered 7 | . 2 1 . . 4 Indirectly . | . . . . . . Trap Hack Attempts . | . . . . . . Triggered . | . . . . . . Disarmed . | . . . . . . Reprogrammed . | . . . . . . Reused . | . . . . . . Traps Extracted . | . . . . . . Installed . | . . . . . . Triggered . | . . . . . . Machines | -11 -10 -9 -9 -8 -7 ---------- Run | Scr Mat Mat Min Mat Fac Machines Disabled . | . . . . . . Max in Single Turn . | . . . . . . Machines Sabotaged . | . . . . . . Garrisons Compromised . | . . . . . . Overloaded Fab Kills . | . . . . . . Hacking | -11 -10 -9 -9 -8 -7 --------- Run | Scr Mat Mat Min Mat Fac Machines Accessed 7 | . 2 1 . 1 3 Terminals 4 | . 1 1 . 1 1 Fabricators . | . . . . . . Repair Stations 1 | . . . . . 1 Recycling Units 1 | . 1 . . . . Scanalyzers . | . . . . . . Garrison Access 1 | . . . . . 1 Total Hacks 23 | . 3 6 . 7 7 Successful 8 | . 1 3 . 3 1 Failed 15 | . 2 3 . 4 6 Catastrophic 6 | . 1 1 . . 4 Database Lockouts . | . . . . . . Manual 9 | . 3 5 . 1 . Terminals 18 | . 2 6 . 7 3 Fabricators . | . . . . . . Repair Stations 3 | . . . . . 3 Recycling Units 1 | . 1 . . . . Scanalyzers . | . . . . . . Garrison Access 1 | . . . . . 1 Terminal Hacks 5 | . . 2 . 3 . Record 1 | . . 1 . . . Prototype ID Bank 1 | . . 1 . . . Branch Access Points 1 | . . . . 1 . Hauler Manifests 1 | . . . . 1 . Registered Components 1 | . . . . 1 . Fabricator Hacks . | . . . . . . Repair Station Hacks . | . . . . . . Recycling Unit Hacks . | . . . . . . Scanalyzer . | . . . . . . Garrison Access Hacks 1 | . . . . . 1 Unlock Access 1 | . . . . . 1 Unauthorized Hacks 2 | . 1 1 . . . Terminals 1 | . . 1 . . . Assimilate 1 | . . 1 . . . Fabricators . | . . . . . . Repair Stations . | . . . . . . Recycling Units 1 | . 1 . . . . Tunnel 1 | . 1 . . . . Scanalyzers . | . . . . . . Garrison Access . | . . . . . . Data Cores Recovered . | . . . . . . Used . | . . . . . . Hacking Detections 6 | . 1 1 . 1 3 Full Trace Events 3 | . 1 . . . 2 Feedback Events 1 | . 1 . . . . Corruption 1 | . 1 . . . . Feedback Blocked . | . . . . . . Robot Schematics Acquired . | . . . . . . Robots Built . | . . . . . . Authchips . | . . . . . . Time . | . . . . . . Total Robot Build Rating . | . . . . . . Part Schematics Acquired . | . . . . . . Parts Built . | . . . . . . Authchips . | . . . . . . Time . | . . . . . . Total Part Build Rating . | . . . . . . Parts Repaired . | . . . . . . Time . | . . . . . . Parts Recycled . | . . . . . . Recycled Matter . | . . . . . . Retrieved Matter . | . . . . . . Retrieved Components . | . . . . . . Parts Scanalyzed . | . . . . . . Part Schematics Acquired . | . . . . . . Parts Damaged . | . . . . . . Bothacking | -11 -10 -9 -9 -8 -7 ------------ Run | Scr Mat Mat Min Mat Fac Used RIF Installer . | . . . . . . Robots Hacked 1 | . . . . . 1 Non-combat . | . . . . . . Combat 1 | . . . . . 1 Robot Hacks Applied 1 | . . . . . 1 parse_system 1 | . . . . . 1 Relay Couplers Released . | . . . . . . Fabnet Peak Effective % . | . . . . . . Robots Rewired 1 | . . . . . 1 Allies Hacked . | . . . . . . Hacks Repelled . | . . . . . . Allies | -11 -10 -9 -9 -8 -7 -------- Run | Scr Mat Mat Min Mat Fac Total Allies 7 | . . . 3 . 4 Largest Group 3 | . . . 3 . 3 Highest-Rated Group 93 | . . . 40 . 93 Highest-Rated Ally 31 | . . . 16 . 31 Total Orders . | . . . . . . Ally Attacks 32 | . . . 11 . 21 Total Damage 694 | . . . 126 . 568 Kills 7 | . . . 2 . 5 Allies Corrupted . | . . . . . . Allies Melted . | . . . . . . Intel | -11 -10 -9 -9 -8 -7 ------- Run | Scr Mat Mat Min Mat Fac Robot Analysis Total . | . . . . . . Derelict Logs Recovered 1 | . . . 1 . . Drone Launches . | . . . . . . Drone Recoveries . | . . . . . . Exploration | -11 -10 -9 -9 -8 -7 ------------- Run | Scr Mat Mat Min Mat Fac Turns Passed 1648 | . 269 152 277 204 746 Spaces Moved 1010 | 1 147 107 141 168 446 Core 98 | . . . 66 20 12 Treads . | . . . . . . Legs 614 | 1 147 107 55 21 283 Wheels 27 | . . . . . 27 Hover 144 | . . . 20 . 124 Flight 127 | . . . . 127 . Fastest Speed 40 | 120 120 120 116 40 60 Average Speed 121 | 120 120 123 185 106 106 Slowest Speed 350 | 120 120 190 350 200 250 Overloaded Moves . | . . . . . . Propulsion Burnouts . | . . . . . . Robots Hopped 1 | . . . . 1 . Cave-ins Triggered . | . . . . . . Exploration Rate (%) 21 | 2 32 17 43 21 14 Regions Visited 5 Branch Regions 1 Pre-discovered Areas 1 | . 1 . . . . Known Exits Taken 2 | . . 1 . 1 . Unknown Exits Taken 3 | 1 1 . 1 . . Scrap Searched 1 | . . . 1 . . Spaces Dug . | . . . . . . Terrain Destroyed 13 | . . 9 4 . . Melee . | . . . . . . Projectile . | . . . . . . AOE 13 | . . 9 4 . . Terrain Rammed . | . . . . . . Walls Destroyed . | . . . . . . Machines Disabled . | . . . . . . Actions | -11 -10 -9 -9 -8 -7 --------- Run | Scr Mat Mat Min Mat Fac Total 1271 | . 200 120 152 188 611 Wait 40 | . . . . 4 36 Move 1002 | . 146 106 140 165 445 Hop 1 | . . . . 1 . Pick Up 19 | . 10 3 2 . 4 Fast Attach 36 | . 1 . 1 6 28 Attach 14 | . . 2 3 3 6 Detach 7 | . . . 1 2 4 Swap 16 | . 6 4 1 . 5 Drop 25 | . 12 1 . 4 8 Fire 98 | . 25 4 1 . 68 Melee . | . . . . . . Ram 6 | . . . 3 3 . Kick 5 | . . . . . 5 Crush . | . . . . . . Escape Stasis 1 | . . . . . 1 Rewire 1 | . . . . . 1 Trap . | . . . . . . Miscellaneous . | . . . . . . Route ------- -11/Scrapyard -10/Materials -9/Materials -9/Mines -8/Materials -7/Factory (discovered 1 exit: Gar) History --------- Turn | Location | Event 1 | -11/Scrapyard | Discovered new exit (range 0) 1 | -11/Scrapyard | Entered Materials 99 | -10/Materials | Discovered new exit (range 3) 270 | -10/Materials | Entered another Materials area 270 | -9/Materials | Evolved 2 slots: Utility x2 396 | -9/Materials | Discovered new exit (range 14) 420 | -9/Materials | Identified exit to Mines 422 | -9/Materials | Entered Mines 449 | -9/Mines | Learned Materials security intel 449 | -9/Mines | Assisted by bots powering up and referring to "LRC-V3" 524 | -9/Mines | Assembled infested the area 529 | -9/Mines | Assisted by a Guerilla fighting off Assembled 556 | -9/Mines | Core integrity fell below 50% 580 | -9/Mines | Core integrity fell below 20% 594 | -9/Mines | Lost 7 parts (2p3n2w) 673 | -9/Mines | Discovered new exit (range 13) 699 | -9/Mines | Entered Materials 699 | -8/Materials | Evolved 2 slots: Propulsion x1, Utility x1 797 | -8/Materials | Build established: Mutant 888 | -8/Materials | Discovered new exit (range 12) 901 | -8/Materials | Identified exit to Factory 903 | -8/Materials | Entered Factory 903 | -7/Factory | Evolved 2 slots: Power x1, Utility x1 1141 | -7/Factory | Lost 4 parts (1p1n2u) 1363 | -7/Factory | Lost 3 parts (2u1w) 1455 | -7/Factory | Core integrity fell below 50% 1472 | -7/Factory | System corruption reached 10% 1502 | -7/Factory | Lost 10 parts (2p4n2u2w) 1563 | -7/Factory | Allied Derelicts emerged from ambush trap array 1608 | -7/Factory | Identified exit to Garrison 1636 | -7/Factory | Assembled infested ambush trap array 1640 | -7/Factory | Core integrity fell below 20% 1649 | -7/Factory | Destroyed by D-53 Grenadier with Mini Grenade Launcher Last Messages --------------- Demolisher response squad. 01636_ S-27 Virus destroyed. 01639_ D-53 Grenadier suffers critical hit (Burn). 01639_ as-71010 destroyed. 01639_ as-81519 destroyed. 01639_ K-01 Serf destroyed. 01639_ as-17802 destroyed. 01641_ U7-VE5(g) destroyed. 01641_ M8-H84(g) destroyed. 01641_ B-48 Gladiator destroyed. 01641_ S-27 Virus destroyed. 01643_ Imp. Heat Sink destroyed. 01643_ S-27 Virus destroyed. 01645_ Repair Station disabled. 01645_ Mic. Nuclear Core destroyed. 01645_ Gravmag System destroyed. 01647_ Wheel destroyed. 01648_ Fusion Modulator explodes. 01648_ R-06 Scavenger destroyed. 01649_ Hvy. Particle Gun destroyed. Map ----- +----------------------------------------------------+ | ?????????????????????????????????????????????????? | | ??????????????????????????#??????????????????????? | | ??????????????????????? #??????????????????????? | | ??????????# ??""""""? = #??????????????????????? | | ??????????# #??????????????????????? | | ??????????# """"""""" #??????????????????????? | | ??????????# #??????????????????????? | | ??????????# """"""""" |#??????????????????????? | | ??????????# ???????????????????????? | | ??????????# """"""""" ???????????#??? ?????????? | | ??????????# ?????? ?" #?? ??????????? | | ??????????# ???????# #?? ????""????? | | ???????##### # #+########## ? #?? ?? ???? | | ???????# ""G"" ## #? """ """???? | | ???????# "">"" ## #? """ Y" ??? | | ######## " % ## #? """ """ ??? | | # #!! u ## " " # ???? | | # #!! " " # "Y" # ?????? | | # #!^ """" u """ ? #???????? | | # # ! """" dd% # ### #???????? | | # """" + """" u r #???????? | | # """" # u % ]#???????? | | # """" + =% * * #???????? | | # """" # !% * #???????? | | # # #???????? | | # """ # ############# @ #???????? | | # """ # #???????????# [ /#???????? | | # """ # #???????????# #???????? | | + # #???????????# #???????? | | # # #???????????# +???????? | | ######## #???????????# #???????? | | #??????# ????????????# "" #???????? | | #??????# ????????????# # ####;;; #???????? | | #??????# ??????????? ###????## #???????? | | #???????#??????????### #???????? #???????? | | #????????????????????# #???????? #???????? | | #???????????????????? #???????? #???????? | | #???????????????????#T #????????? #???????? | | #???????????????????## #????????? #???????? | | #????????????????????# #????????? ????????? | | #????????????????????# ??????????????????????? | | #????????????????????# ??????????????????????? | | #????????????????????# ??????????????????????? | | #????????????????????# ??????????????????????? | | #???????????????????????? ???????????????????????? | | #????????????????????????????????????????????????? | | #????????????????????????????????????????????????? | | #????????????????????????????????????????????????? | | #????????????????????????????????????????????????? | | +????????????????????????????????????????????????? | +----------------------------------------------------+ Best States ------------- Heat Dissipation 48 Energy Generation 25 Energy Capacity 350 Matter Stores 300 Matter Capacity 300 Sight Range 18 Robot Scan Range 14 Terrain Scan Density 10 Additional Mass Support 9 Armor Coverage 225 Evasion (%) 62 Targeting Accuracy 5 Target Analysis 5 Offensive Hacking 10 Defensive Hacking 10 Item Schematics ----------------- None Robot Schematics ------------------ None Fabricated ------------ Nothing Alien Tech Used ----------------- None Achievements -------------- Brute Force Slippery One Challenges ------------ None Game ------ Seed ActiveLightpackNanoactuators Manual? 0 Play Time 00:30:16 Cumulative 81.7 hours Start 2022.05.19 @ 04:59:04 End 2022.05.19 @ 05:29:24 Sessions 1 Manual Loads 0 Difficulty Rogue Special Mode None Game No. 124 Rogue 78 Adventurer 45 Explorer 1 Win Type - Total 0 Types 0/0/0/0/0/0/0/0/0 Lore% 26 Gallery% 46 Achievement% 33 Wizard Run 0 Options --------- ASCII 0 Keyboard 0 Movement Mouse Keybinds 0 Fullscreen 2 Font 18/X11Bold Map View 76x50 Tactical HUD 1 Map Filters NONE Filters LOW_CONTRAST(13,24,33)|BRIGHTNESS(90)|SATURATION(87) Steam 1 RUN: f9beebf1-f7de-4b1c-800a-15769e4ca66c